bitfinex/quotes_BTCUSD_20230115
["timestamp","ask_amount","ask_price","bid_price","bid_amount"]
[1673772568535,3.86623928,20684.0,20683.0,0.0085747]
[1673772568792,3.72150179,20684.0,20683.0,0.0085747]
[1673772569089,3.42150179,20684.0,20683.0,0.0085747]
[1673772569364,2.77333479,20684.0,20683.0,0.0085747]
[1673772569595,3.07333479,20684.0,20683.0,0.0085747]
[1673772569873,0.00705399,20682.0,20680.0,0.01144993]
[1673772570130,1.11091844,20681.0,20680.0,0.01144993]
[1673772570428,1.43242944,20681.0,20680.0,0.01144993]
[1673772570648,1.11091844,20681.0,20680.0,0.01144993]
[1673772571132,0.96707,20681.0,20680.0,0.01144993]
[1673772571388,1.43242944,20681.0,20680.0,0.01144993]
[1673772571644,1.51742944,20681.0,20680.0,0.01144993]
[1673772571900,1.73322978,20681.0,20680.0,0.01144993]
[1673772572152,2.2498128,20681.0,20680.0,0.01144993]
[1673772572992,2.39369257,20681.0,20680.0,0.01144993]
[1673772573463,2.17791991,20681.0,20680.0,0.01144993]
[1673772573710,2.39369257,20681.0,20680.0,0.01144993]
[1673772574224,2.2498128,20681.0,20680.0,0.01144993]
[1673772574493,3.50484816,20681.0,20680.0,0.01144993]
[1673772575012,4.46306189,20681.0,20680.0,0.01144993]
[1673772575266,4.05563614,20681.0,20680.0,0.01144993]
[1673772575592,4.3923575,20681.0,20680.0,0.01144993]
[1673772575782,0.0062468,20679.0,20678.0,0.00960441]
[1673772576034,0.58209329,20679.0,20678.0,0.00960441]
[1673772576282,3.84759739,20679.0,20678.0,0.00960441]
[1673772576546,3.4880959,20679.0,20678.0,0.00960441]
[1673772577141,3.96219807,20679.0,20678.0,0.00960441]
[1673772577356,4.33800289,20679.0,20678.0,0.00960441]
[1673772577613,4.25177807,20679.0,20678.0,0.00960441]
[1673772577866,4.68318101,20679.0,20678.0,0.00960441]
[1673772578416,4.24069807,20679.0,20678.0,0.00960441]
[1673772578674,5.00882237,20679.0,20678.0,0.00960441]
[1673772578926,4.67210101,20679.0,20678.0,0.00960441]
[1673772579773,4.93692625,20679.0,20678.0,0.00960441]
[1673772580023,5.27364761,20679.0,20678.0,0.00960441]
[1673772580539,5.31396911,20679.0,20678.0,0.00960441]
[1673772580834,5.8821708,20679.0,20678.0,4.1e-07]
[1673772581100,0.00389547,20677.0,20676.0,0.00945561]
[1673772581361,2.737797,20677.0,20676.0,0.00945561]
[1673772581633,5.16085679,20677.0,20676.0,0.00945561]
[1673772582158,2.32379357,20677.0,20676.0,0.00945561]
[1673772582416,0.8275675,20677.0,20676.0,0.00945561]
[1673772582668,0.54062254,20677.0,20676.0,0.00945561]
[1673772582923,1.25924688,20677.0,20676.0,0.00945561]
[1673772583171,1.04403081,20677.0,20676.0,0.00945561]
[1673772583454,0.9915512,20677.0,20676.0,0.00945561]
[1673772583686,0.9005512,20677.0,20676.0,0.00945561]
[1673772583925,0.9915512,20677.0,20676.0,0.00945561]
[1673772584185,1.2915512,20677.0,20676.0,0.00945561]
[1673772584686,0.9915512,20677.0,20676.0,0.00945561]
[1673772585678,0.6700402,20677.0,20676.0,0.00945561]
[1673772585954,0.09489547,20677.0,20676.0,1.13770374]
[1673772586463,0.09489547,20677.0,20676.0,1.13863702]
[1673772588607,0.09489547,20677.0,20676.0,1.13770374]
[1673772588887,0.09489547,20677.0,20676.0,0.65405174]
[1673772590690,0.09489547,20677.0,20676.0,0.00945561]
[1673772590942,0.89038276,20677.0,20676.0,0.00945561]
[1673772591501,0.56887176,20677.0,20676.0,0.00945561]
[1673772592018,0.89038276,20677.0,20676.0,0.00945561]
[1673772592559,0.56887176,20677.0,20676.0,0.00945561]
[1673772592845,1.37401176,20677.0,20676.0,0.00945561]
[1673772593642,1.05250076,20677.0,20676.0,0.00945561]
[1673772594954,0.56887176,20677.0,20676.0,0.00945561]
[1673772595985,0.56887176,20677.0,20676.0,0.01038889]
[1673772596527,0.09489547,20677.0,20676.0,0.01038889]
[1673772597556,0.09489547,20677.0,20676.0,0.00945561]
[1673772602616,0.09489547,20677.0,20676.0,0.00939335]
[1673772602885,0.59912953,20677.0,20676.0,0.00939335]
[1673772603397,0.92064053,20677.0,20676.0,0.00939335]
[1673772603657,1.40426953,20677.0,20676.0,0.00939335]
[1673772604142,1.08275853,20677.0,20676.0,0.00939335]
[1673772605432,1.40426953,20677.0,20676.0,0.00939335]
[1673772605902,1.08275853,20677.0,20676.0,0.00939335]
[1673772607680,1.40426953,20677.0,20676.0,0.00939335]
[1673772607949,1.65824603,20677.0,20676.0,0.00939335]
[1673772608230,2.01694171,20677.0,20676.0,0.00939335]
[1673772608456,3.12409752,20677.0,20676.0,0.00939335]
[1673772609000,0.00755993,20675.0,20674.0,0.01209879]
[1673772609237,2.35564799,20675.0,20674.0,0.01209879]
[1673772609505,3.75401897,20675.0,20674.0,0.01209879]
[1673772610520,3.84401897,20675.0,20674.0,0.01209879]
[1673772611277,3.98175891,20675.0,20674.0,0.01209879]
[1673772612583,3.62248947,20675.0,20674.0,0.01209879]
[1673772613372,4.05289161,20675.0,20674.0,0.01209879]
[1673772613626,3.62248947,20675.0,20674.0,0.01209879]
[1673772614441,4.45678518,20675.0,20673.0,0.00377673]
[1673772614702,3.03340427,20674.0,20673.0,0.00377673]
[1673772614960,3.84882463,20674.0,20673.0,0.00377673]
[1673772615478,3.84854994,20674.0,20673.0,0.00377673]
[1673772615736,3.97964994,20674.0,20673.0,0.00377673]
[1673772616254,3.99072994,20674.0,20673.0,0.00377673]
[1673772616517,0.2301,20673.0,20671.0,1.681e-05]
[1673772616820,3.8743913,20672.0,20662.0,0.62322713]
[1673772617085,0.27464427,20666.0,20662.0,0.62322713]
[1673772617351,0.85865335,20666.0,20663.0,0.51983246]
[1673772617608,1.30193525,20666.0,20662.0,0.63229894]
[1673772617868,0.8958929,20666.0,20662.0,0.63229894]
[1673772618175,0.9868929,20666.0,20662.0,0.63229894]
[1673772618440,0.8958929,20666.0,20662.0,0.63229894]
[1673772618691,0.752611,20666.0,20663.0,0.47398031]
[1673772618950,0.321511,20666.0,20665.0,0.56114362]
[1673772619207,0.091,20666.0,20665.0,0.56114362]
[1673772619478,0.091,20666.0,20665.0,1.04505262]
[1673772620030,0.66554331,20669.0,20665.0,0.6285568]
[1673772620297,0.66554331,20669.0,20666.0,0.1311]
[1673772620562,0.66554331,20669.0,20667.0,0.967726]
[1673772620839,0.36380861,20672.0,20667.0,0.967726]
[1673772620840,0.63906276,20668.0,20667.0,0.967726]
[1673772621621,0.24849221,20672.0,20667.0,0.967726]
[1673772621885,0.60553014,20671.0,20667.0,2.05550622]
[1673772622286,0.60553014,20671.0,20667.0,1.57164322]
[1673772623185,0.69553014,20671.0,20667.0,1.57164322]
[1673772623835,0.88625609,20671.0,20667.0,1.57164322]
[1673772624083,0.49974446,20670.0,20667.0,1.57164322]
[1673772624297,0.49974446,20670.0,20667.0,1.08778022]
[1673772624517,0.49974446,20670.0,20668.0,0.60119854]
[1673772625885,0.58974446,20670.0,20668.0,0.60119854]
[1673772627951,0.58974446,20670.0,20667.0,0.5373]
[1673772628164,0.321511,20669.0,20667.0,0.5373]
[1673772628403,0.58974446,20670.0,20667.0,0.5373]
[1673772628850,0.49974446,20670.0,20667.0,0.5373]
[1673772629115,0.51949828,20669.0,20667.0,0.5373]
[1673772630128,0.67720611,20669.0,20667.0,0.5373]
[1673772630640,0.321511,20668.0,20667.0,0.5373]
[1673772630897,0.321511,20668.0,20665.0,0.0135478]
[1673772631146,0.216345,20667.0,20665.0,0.0135478]
[1673772631403,1.15842695,20668.0,20665.0,0.0135478]
[1673772631660,1.2240824,20668.0,20665.0,0.0135478]
[1673772632161,0.95702789,20667.0,20665.0,0.0135478]
[1673772632412,0.216345,20666.0,20665.0,0.0135478]
[1673772632670,1.11939389,20667.0,20666.0,0.02053156]
[1673772633184,1.44090489,20667.0,20666.0,0.02053156]
[1673772633693,2.0715556,20667.0,20666.0,0.02053156]
[1673772633951,1.7715556,20667.0,20666.0,0.02053156]
[1673772634205,1.105388,20667.0,20666.0,0.02053156]
[1673772634456,0.805388,20667.0,20666.0,0.02053156]
[1673772634664,1.290388,20667.0,20666.0,0.02053156]
[1673772635201,1.72773959,20667.0,20666.0,0.02053156]
[1673772635471,1.64273959,20667.0,20666.0,0.02053156]
[1673772635714,1.196388,20667.0,20666.0,0.02053156]
[1673772635972,1.427904,20667.0,20666.0,0.02053156]
[1673772636229,1.518904,20667.0,20666.0,0.02053156]
[1673772637484,1.427904,20667.0,20666.0,0.02053156]
[1673772637730,1.818904,20667.0,20666.0,0.02053156]
[1673772637982,1.427904,20667.0,20666.0,0.02053156]
[1673772638231,1.518904,20667.0,20666.0,0.02053156]
[1673772638478,1.427904,20667.0,20666.0,0.02053156]
[1673772638725,1.518904,20667.0,20666.0,0.02053156]
[1673772638972,1.12986789,20667.0,20666.0,0.02053156]
[1673772639273,2.20837553,20667.0,20666.0,0.02053156]
[1673772639501,0.216345,20663.0,20660.0,0.01311362]
[1673772639752,0.19072595,20662.0,20660.0,0.01311362]
[1673772640033,1.289517,20661.0,20660.0,0.01311362]
[1673772641125,0.483961,20663.0,20660.0,0.53306073]
[1673772641396,0.02521788,20664.0,20662.0,0.53362094]
[1673772641961,0.02521788,20664.0,20660.0,0.01311362]
[1673772642200,0.54363447,20664.0,20661.0,0.63837995]
[1673772643499,0.02521788,20664.0,20661.0,0.63837995]
[1673772645584,0.53134355,20664.0,20661.0,0.63837995]
[1673772647341,0.02521788,20664.0,20661.0,0.63837995]
[1673772647839,0.02521788,20664.0,20661.0,1.12237495]
[1673772649809,0.02521788,20664.0,20661.0,0.483995]
[1673772650050,0.02521788,20664.0,20662.0,0.55417137]
[1673772651070,0.02521788,20664.0,20662.0,1.03814037]
[1673772652330,0.02521788,20664.0,20663.0,0.63539653]
[1673772652835,0.02521788,20664.0,20661.0,0.5365]
[1673772653086,0.02521788,20664.0,20663.0,0.615056]
[1673772654079,0.02521788,20664.0,20663.0,1.499012]
[1673772654340,0.02521788,20664.0,20663.0,1.630112]
[1673772654642,0.02521788,20664.0,20663.0,1.96683336]
[1673772654873,0.02521788,20664.0,20663.0,1.630112]
[1673772655353,0.02521788,20664.0,20663.0,1.230112]
[1673772656095,0.02521788,20664.0,20663.0,1.8372572]
[1673772656357,0.02521788,20664.0,20663.0,1.7061572]
[1673772656600,0.02521788,20664.0,20663.0,0.7382452]
[1673772657114,0.02521788,20664.0,20663.0,0.6071452]
[1673772657609,0.02521788,20664.0,20661.0,0.5365]
[1673772658412,0.02521788,20664.0,20662.0,0.56165929]
[1673772658892,0.50257895,20664.0,20662.0,0.56165929]
[1673772663826,0.66698752,20664.0,20662.0,0.56165929]
[1673772664069,7.221e-05,20662.0,20661.0,0.5365]
[1673772665018,7.221e-05,20662.0,20661.0,1.17599286]
[1673772665782,0.48405221,20662.0,20660.0,0.01311362]
[1673772666066,1.18624709,20662.0,20660.0,0.01311362]
[1673772666297,0.321511,20661.0,20660.0,0.01311362]
[1673772666543,0.484003,20661.0,20660.0,0.01311362]
[1673772666798,0.805514,20661.0,20660.0,0.01311362]
[1673772668013,1.58654807,20661.0,20660.0,0.01311362]
[1673772668264,1.80112003,20661.0,20660.0,0.01311362]
[1673772668513,1.58654807,20661.0,20660.0,0.01311362]
[1673772668768,1.80112003,20661.0,20660.0,0.01311362]
[1673772669011,1.58654807,20661.0,20660.0,0.01301263]
[1673772669776,0.94856198,20661.0,20660.0,0.01301263]
[1673772670261,1.46313394,20661.0,20660.0,0.01301263]
[1673772670505,1.78525909,20661.0,20660.0,0.01301263]
[1673772670746,1.99983105,20661.0,20660.0,0.01301263]
[1673772670987,2.26823888,20661.0,20660.0,0.01301263]
[1673772671231,1.16313394,20661.0,20660.0,0.01301263]
[1673772671471,1.02008596,20661.0,20660.0,0.01301263]
[1673772671714,0.1,20660.0,20659.0,0.00280907]
[1673772671967,1.72774932,20660.0,20659.0,0.00280907]
[1673772672214,2.29320754,20660.0,20659.0,0.00280907]
[1673772672466,3.1983037,20660.0,20659.0,0.00280907]
[1673772672701,3.53502506,20660.0,20659.0,0.00280907]
[1673772672953,4.42375681,20660.0,20659.0,0.00280907]
[1673772673202,3.20502972,20660.0,20659.0,0.00280907]
[1673772673444,3.06228742,20660.0,20659.0,0.00280907]
[1673772673718,1.80777366,20660.0,20659.0,0.00280907]
[1673772673964,2.09386961,20660.0,20659.0,0.00280907]
[1673772675175,3.06230824,20660.0,20659.0,0.00280907]
[1673772675588,2.53271765,20660.0,20659.0,0.00280907]
[1673772675829,2.2466217,20660.0,20659.0,0.00280907]
[1673772676333,2.86943901,20660.0,20659.0,0.00280907]
[1673772677112,4.50702041,20660.0,20659.0,0.00280907]
[1673772677367,4.63762041,20660.0,20659.0,0.00280907]
[1673772677640,0.1,20659.0,20658.0,0.01417836]
[1673772677921,2.07780776,20659.0,20658.0,0.01417836]
[1673772678135,2.37780776,20659.0,20658.0,0.01417836]
[1673772678640,2.23472699,20659.0,20658.0,0.01417836]
[1673772679154,2.37779993,20659.0,20658.0,0.01417836]
[1673772679397,2.23472699,20659.0,20658.0,0.01417836]
[1673772679655,2.37778241,20659.0,20658.0,0.01417836]
[1673772680663,2.0410175,20659.0,20658.0,0.01417836]
[1673772680915,2.15855972,20659.0,20658.0,0.01417836]
[1673772681177,1.85856077,20659.0,20658.0,0.01417836]
[1673772681439,0.814061,20659.0,20658.0,0.01417836]
[1673772681937,1.353975,20659.0,20658.0,0.01417836]
[1673772682424,0.861425,20659.0,20658.0,0.01417836]
[1673772682685,0.57456991,20659.0,20658.0,0.01417836]
[1673772682937,0.67477595,20659.0,20658.0,0.01417836]
[1673772683190,1.69131569,20659.0,20658.0,0.01417836]
[1673772683446,0.00533282,20657.0,20656.0,0.0135478]
[1673772683703,0.14817437,20657.0,20656.0,0.0135478]
[1673772683973,0.32684382,20657.0,20656.0,0.0135478]
[1673772684227,0.62684382,20657.0,20656.0,0.0135478]
[1673772684724,0.32684382,20657.0,20656.0,0.0135478]
[1673772685004,0.42684382,20657.0,20656.0,0.0135478]
[1673772685233,0.72684382,20657.0,20656.0,0.0135478]
[1673772685750,1.02205212,20657.0,20656.0,0.0135478]
[1673772686015,1.30449367,20657.0,20656.0,0.0135478]
[1673772686275,1.37591444,20657.0,20656.0,0.0135478]
[1673772686520,2.63040318,20657.0,20656.0,0.0135478]
[1673772686767,3.43309569,20657.0,20656.0,0.0135478]
[1673772687029,1.2622128,20657.0,20656.0,0.0135478]
[1673772687288,1.11944082,20657.0,20656.0,0.0135478]
[1673772687546,1.25054082,20657.0,20656.0,0.0135478]
[1673772687787,1.25054082,20657.0,20653.0,0.01575482]
[1673772687788,0.00674673,20655.0,20653.0,0.01575482]
[1673772688108,1.184679,20654.0,20653.0,0.01575482]
[1673772688288,1.484679,20654.0,20653.0,0.01575482]
[1673772688547,1.53306501,20654.0,20653.0,0.01575482]
[1673772688812,2.15457601,20654.0,20653.0,0.01575482]
[1673772689298,2.04941001,20654.0,20653.0,0.01575482]
[1673772689547,2.15457601,20654.0,20653.0,0.01575482]
[1673772690053,0.00674673,20655.0,20653.0,0.10960482]
[1673772690309,0.00674673,20655.0,20653.0,0.76867399]
[1673772691311,0.00674673,20655.0,20653.0,0.49994482]
[1673772691835,0.00674673,20655.0,20654.0,0.2306]
[1673772692077,0.00674673,20655.0,20654.0,1.2843621]
[1673772692332,0.00674673,20655.0,20654.0,0.74680129]
[1673772692333,4.673e-05,20655.0,20654.0,0.74680129]
[1673772692618,0.00533282,20657.0,20655.0,0.1]
[1673772692822,0.00533282,20657.0,20656.0,1.09934]
[1673772693339,0.00533282,20657.0,20656.0,1.62864]
[1673772694126,0.00533282,20657.0,20656.0,1.75864]
[1673772694417,0.00533282,20657.0,20656.0,2.05864]
[1673772695138,0.00533282,20657.0,20656.0,1.75864]
[1673772695885,0.00533282,20657.0,20656.0,2.53584169]
[1673772697901,0.00533282,20657.0,20656.0,2.87256305]
[1673772698655,0.00533282,20657.0,20656.0,2.53584169]
[1673772698902,0.19605877,20657.0,20656.0,0.5293]
[1673772699159,0.55201136,20657.0,20656.0,0.5293]
[1673772699405,0.00533282,20657.0,20656.0,0.5293]
[1673772701446,0.00533282,20657.0,20656.0,1.09628608]
[1673772703324,0.00533282,20657.0,20656.0,0.5293]
[1673772703529,0.00533282,20657.0,20653.0,0.60427606]
[1673772703530,0.98500759,20657.0,20653.0,0.60427606]
[1673772703780,0.19072595,20656.0,20653.0,0.60427606]
[1673772704060,1.26944143,20656.0,20653.0,0.60427606]
[1673772704595,1.07871548,20656.0,20654.0,0.51613478]
[1673772705379,1.07871548,20656.0,20653.0,0.01575482]
[1673772706438,0.65995355,20655.0,20653.0,0.01575482]
[1673772708354,0.65995355,20655.0,20653.0,0.58552396]
[1673772709968,0.48942982,20657.0,20653.0,0.58552396]
[1673772710223,0.64004656,20656.0,20654.0,0.55300951]
[1673772710724,0.48942982,20657.0,20654.0,0.55300951]
[1673772711258,0.00533282,20657.0,20654.0,0.55300951]
[1673772712577,0.59463937,20657.0,20654.0,0.55300951]
[1673772712805,0.59463937,20657.0,20653.0,0.01575482]
[1673772712806,0.57312067,20656.0,20653.0,0.01575482]
[1673772713053,1.48052495,20655.0,20653.0,0.01575482]
[1673772713312,0.216345,20654.0,20653.0,0.01575482]
[1673772713578,0.700512,20654.0,20653.0,0.01575482]
[1673772713927,0.484167,20654.0,20653.0,0.01575482]
[1673772714344,0.99493075,20654.0,20653.0,0.01575482]
[1673772716907,0.99493075,20654.0,20653.0,0.01565869]
[1673772717425,1.31644175,20654.0,20653.0,0.01565869]
[1673772717675,1.21127575,20654.0,20653.0,0.01565869]
[1673772717937,0.99493075,20654.0,20653.0,0.01565869]
[1673772719215,1.31644175,20654.0,20653.0,0.01565869]
[1673772719466,0.99493075,20654.0,20653.0,0.01565869]
[1673772720295,1.31644175,20654.0,20653.0,0.01565869]
[1673772720494,1.31627607,20654.0,20653.0,0.01565869]
[1673772720762,0.99640395,20654.0,20653.0,0.01565869]
[1673772721024,0.1,20653.0,20652.0,0.00466647]
[1673772721281,1.42318909,20653.0,20652.0,0.00466647]
[1673772721570,0.84383401,20653.0,20652.0,0.00466647]
[1673772721826,1.40980874,20653.0,20652.0,0.00466647]
[1673772722598,0.56597473,20653.0,20652.0,0.10068647]
[1673772722875,1.05016573,20653.0,20652.0,0.00466647]
[1673772723397,0.56597473,20653.0,20652.0,0.00466647]
[1673772723689,1.05016573,20653.0,20652.0,0.00466647]
[1673772725522,1.37167673,20653.0,20652.0,0.00466647]
[1673772725777,1.05016573,20653.0,20652.0,0.00466647]
[1673772726544,1.37167673,20653.0,20652.0,0.00466647]
[1673772726872,1.05016573,20653.0,20652.0,0.00466647]
[1673772728100,0.56597473,20653.0,20652.0,0.00466647]
[1673772728352,1.05016573,20653.0,20652.0,0.00466647]
[1673772730649,0.61954707,20652.0,20651.0,0.01523232]
[1673772731170,0.484191,20653.0,20651.0,0.11125232]
[1673772731462,0.484191,20653.0,20651.0,0.01523232]
[1673772731463,1.02684957,20652.0,20651.0,0.01523232]
[1673772732200,1.34836057,20652.0,20651.0,0.01523232]
[1673772733290,1.02684957,20652.0,20651.0,0.01523232]
[1673772734591,1.34836057,20652.0,20651.0,0.01523232]
[1673772735053,1.02684957,20652.0,20651.0,0.01523232]
[1673772735280,0.805725,20652.0,20651.0,0.01523232]
[1673772735536,1.08948909,20652.0,20651.0,0.01523232]
[1673772735787,2.29445146,20652.0,20651.0,0.01523232]
[1673772736040,2.45726881,20652.0,20651.0,0.01523232]
[1673772736537,2.25085551,20652.0,20651.0,0.01523232]
[1673772736788,3.43458669,20652.0,20651.0,0.01523232]
[1673772737042,3.21971152,20652.0,20651.0,0.01523232]
[1673772737297,4.09485316,20652.0,20651.0,0.01523232]
[1673772737575,3.43446777,20652.0,20651.0,0.01523232]
[1673772737835,3.43446709,20652.0,20651.0,0.01523232]
[1673772738091,3.95313152,20652.0,20651.0,0.01523232]
[1673772738346,3.08981453,20652.0,20651.0,0.01523232]
[1673772738582,3.30457018,20652.0,20651.0,0.01523232]
[1673772738831,3.67915663,20652.0,20651.0,0.01523232]
[1673772739117,0.1,20651.0,20650.0,0.0097328]
[1673772739340,3.2639976,20651.0,20650.0,0.0097328]
[1673772739674,2.00866003,20651.0,20650.0,0.0097328]
[1673772739836,3.35534287,20651.0,20650.0,0.0097328]
[1673772740092,4.15907182,20651.0,20650.0,0.0097328]
[1673772740346,2.53084665,20651.0,20650.0,0.0097328]
[1673772740605,3.19356997,20651.0,20650.0,0.0097328]
[1673772740870,3.49981347,20651.0,20650.0,0.0097328]
[1673772741129,0.01866867,20648.0,20647.0,0.01710938]
[1673772741388,1.03025101,20648.0,20647.0,0.01710938]
[1673772741640,3.17651931,20648.0,20647.0,0.01710938]
[1673772742679,3.085154,20648.0,20647.0,0.01710938]
[1673772742954,3.42187536,20648.0,20647.0,0.01710938]
[1673772743228,5.64716053,20648.0,20647.0,0.01710938]
[1673772743494,5.36078822,20648.0,20647.0,0.01710938]
[1673772743763,5.64636118,20648.0,20647.0,0.01710938]
[1673772744020,4.98701216,20648.0,20647.0,0.01710938]
[1673772744546,5.49024414,20648.0,20647.0,0.01710938]
[1673772745138,5.96697831,20648.0,20647.0,0.01710938]
[1673772745389,0.02308776,20646.0,20644.0,0.01747519]
[1673772745638,2.283957,20645.0,20644.0,0.01747519]
[1673772745904,4.17467261,20645.0,20644.0,0.01747519]
[1673772746213,6.34352246,20645.0,20638.0,0.01855738]
[1673772746489,0.1311,20639.0,20638.0,0.01855738]
[1673772746747,1.99172795,20639.0,20638.0,0.01855738]
[1673772747040,1.809502,20639.0,20638.0,0.01855738]
[1673772747566,2.101002,20639.0,20638.0,0.01855738]
[1673772748085,2.23528071,20639.0,20638.0,0.01855738]
[1673772748358,2.101002,20639.0,20638.0,0.01855738]
[1673772749172,0.01198154,20637.0,20633.0,0.5491]
[1673772749426,1.64450795,20636.0,20633.0,0.5491]
[1673772749686,0.321511,20635.0,20633.0,0.5491]
[1673772749987,1.185619,20634.0,20633.0,0.5491]
[1673772750200,1.185619,20634.0,20630.0,0.61187968]
[1673772750201,1.61089824,20634.0,20630.0,0.61187968]
[1673772750462,0.64333695,20633.0,20630.0,0.51253524]
[1673772750746,1.185711,20632.0,20630.0,0.51253524]
[1673772751032,0.969366,20632.0,20629.0,0.01837602]
[1673772751334,0.484606,20636.0,20629.0,0.01837602]
[1673772751594,0.484606,20636.0,20631.0,0.1305]
[1673772751595,0.77506792,20636.0,20631.0,0.1305]
[1673772751843,0.58434197,20636.0,20631.0,0.1305]
[1673772752105,0.01198154,20637.0,20631.0,0.1305]
[1673772752362,0.80634881,20637.0,20632.0,0.5149]
[1673772752806,0.87496711,20637.0,20632.0,0.5149]
[1673772752808,0.64028002,20636.0,20632.0,0.5149]
[1673772753064,0.20270749,20637.0,20632.0,0.5149]
[1673772753324,0.7918493,20636.0,20632.0,0.5149]
[1673772753586,0.7918493,20636.0,20631.0,0.48060288]
[1673772753587,0.19072595,20636.0,20631.0,0.48060288]
[1673772753862,0.76090683,20635.0,20631.0,0.48060288]
[1673772754104,0.76090683,20635.0,20632.0,0.61940407]
[1673772754363,0.57018088,20635.0,20632.0,0.61940407]
[1673772754637,0.57018088,20635.0,20633.0,0.57221847]
[1673772755768,1.05480088,20635.0,20633.0,0.57221847]
[1673772756037,0.484598,20636.0,20633.0,0.57221847]
[1673772756295,0.484598,20636.0,20634.0,0.52592995]
[1673772756562,1.11609807,20637.0,20634.0,0.52592995]
[1673772756820,0.01198154,20637.0,20632.0,0.484682]
[1673772757092,0.01198154,20637.0,20636.0,0.1311]
[1673772757881,0.01198154,20637.0,20635.0,0.615703]
[1673772758674,0.01198154,20637.0,20635.0,0.1311]
[1673772759263,0.01198154,20637.0,20636.0,0.49897406]
[1673772760924,0.01198154,20637.0,20634.0,0.4627]
[1673772761436,0.01198154,20637.0,20636.0,0.1306]
[1673772761999,0.01198154,20637.0,20636.0,0.2306]
[1673772762255,0.01198154,20637.0,20636.0,0.74320651]
[1673772762519,0.01198154,20637.0,20636.0,0.13069537]
[1673772762777,0.01198154,20637.0,20636.0,0.75352343]
[1673772763041,0.01198154,20637.0,20636.0,1.23811343]
[1673772763302,0.01198154,20637.0,20636.0,0.75352343]
[1673772764368,0.01198154,20637.0,20636.0,0.75342806]
[1673772764854,0.01198154,20637.0,20636.0,0.62282806]
[1673772765410,0.01198154,20637.0,20636.0,0.62292343]
[1673772767415,1.08671663,20637.0,20635.0,0.1311]
[1673772769787,1.08671663,20637.0,20634.0,1.07487912]
[1673772769788,0.19072595,20636.0,20630.0,0.791426]
[1673772770045,0.19072595,20636.0,20630.0,0.4891308]
[1673772770046,0.26246061,20634.0,20630.0,0.4891308]
[1673772770312,1.16005595,20633.0,20630.0,0.4891308]
[1673772771161,0.96933,20633.0,20630.0,0.4891308]
[1673772772226,0.96933,20633.0,20629.0,0.47587602]
[1673772772542,0.59856485,20632.0,20629.0,0.97027454]
[1673772772792,0.969414,20631.0,20629.0,0.97027454]
[1673772773541,0.969414,20631.0,20629.0,0.51277454]
[1673772775856,1.57903158,20631.0,20629.0,0.51277454]
[1673772777148,0.969414,20631.0,20629.0,0.51277454]
[1673772777426,0.484707,20631.0,20630.0,0.63633375]
[1673772778160,0.98179616,20632.0,20630.0,0.63633375]
[1673772778410,0.484744,20632.0,20630.0,0.63633375]
[1673772778952,0.484744,20632.0,20629.0,0.50322042]
[1673772778953,6e-05,20632.0,20629.0,0.50322042]
[1673772779169,6e-05,20632.0,20630.0,0.3]
[1673772779423,6e-05,20632.0,20631.0,0.2622]
[1673772779691,0.26246061,20634.0,20632.0,3.4e-05]
[1673772779950,0.26246061,20634.0,20633.0,0.48466]
[1673772780209,0.26246061,20634.0,20633.0,1.04686]
[1673772780705,0.26246061,20634.0,20633.0,2.00872169]
[1673772781504,0.26246061,20634.0,20633.0,1.70872169]
[1673772781968,0.26246061,20634.0,20633.0,2.00872169]
[1673772782963,0.26246061,20634.0,20633.0,2.53041916]
[1673772783222,0.26246061,20634.0,20633.0,2.00872169]
[1673772783478,0.26246061,20634.0,20633.0,1.23152]
[1673772783727,0.26246061,20634.0,20633.0,1.86072524]
[1673772784061,0.26246061,20634.0,20633.0,1.72962524]
[1673772785033,0.26246061,20634.0,20633.0,1.53152]
[1673772785335,0.26246061,20634.0,20633.0,2.00872169]
[1673772785540,0.26246061,20634.0,20633.0,2.15356232]
[1673772785796,0.01198154,20637.0,20633.0,4.12227216]
[1673772786061,0.01198154,20637.0,20636.0,1.13562429]
[1673772786323,0.01198154,20637.0,20636.0,3.53537678]
[1673772786595,0.01198154,20637.0,20636.0,2.49348255]
[1673772786824,0.01198154,20637.0,20636.0,0.69694009]
[1673772786825,0.79215649,20637.0,20636.0,0.69694009]
[1673772787107,0.6190016,20636.0,20634.0,0.64411974]
[1673772787357,0.19072595,20635.0,20634.0,0.1400585]
[1673772787654,0.649397,20635.0,20634.0,0.1400585]
[1673772791203,0.69612875,20635.0,20634.0,0.1400585]
[1673772791503,1.106124,20635.0,20634.0,0.1400585]
[1673772793570,1.106124,20635.0,20626.0,0.64639382]
[1673772793571,0.24691418,20633.0,20626.0,0.64639382]
[1673772793828,0.969418,20631.0,20626.0,0.64639382]
[1673772794082,0.19072595,20630.0,20626.0,0.64759382]
[1673772794356,0.19072595,20629.0,20626.0,0.64759382]
[1673772794612,0.67548195,20629.0,20626.0,0.64759382]
[1673772795127,0.484756,20629.0,20626.0,0.64759382]
[1673772795399,0.484756,20629.0,20626.0,0.1312]
[1673772795678,0.6679332,20628.0,20626.0,0.1312]
[1673772795909,0.6679332,20628.0,20626.0,0.05193883]
[1673772796176,0.6679332,20628.0,20625.0,0.02075556]
[1673772796444,1.34240528,20628.0,20625.0,0.02075556]
[1673772796718,1.15167933,20628.0,20625.0,0.02075556]
[1673772797005,1.15167933,20628.0,20625.0,0.65418282]
[1673772798051,0.65967772,20627.0,20625.0,0.65418282]
[1673772798349,1.33521667,20627.0,20625.0,0.02075556]
[1673772798603,0.484813,20627.0,20625.0,0.02075556]
[1673772798872,1.12131089,20627.0,20625.0,0.02075556]
[1673772799409,0.63649789,20627.0,20625.0,0.65977657]
[1673772800489,0.484715,20631.0,20625.0,0.15195556]
[1673772800760,0.24691418,20633.0,20626.0,0.47720169]
[1673772801025,0.76861893,20632.0,20625.0,1.41882578]
[1673772801282,0.51420898,20630.0,20626.0,0.64818373]
[1673772801528,0.70493493,20630.0,20626.0,0.64818373]
[1673772801794,0.70493493,20630.0,20625.0,0.02075556]
[1673772801795,0.27121944,20630.0,20625.0,0.02075556]
[1673772802052,0.19072595,20629.0,20625.0,0.02075556]
[1673772802345,0.19072595,20629.0,20625.0,0.49078762]
[1673772803347,0.56232084,20628.0,20625.0,0.49078762]
[1673772803613,0.75304679,20628.0,20625.0,0.49078762]
[1673772803828,0.56232084,20628.0,20625.0,0.49078762]
[1673772804105,0.484716,20631.0,20626.0,0.47866097]
[1673772804391,0.63506566,20629.0,20626.0,0.47866097]
[1673772804652,0.61333571,20628.0,20626.0,0.47866097]
[1673772804948,0.61333571,20628.0,20625.0,0.02075556]
[1673772805195,1.28883966,20628.0,20625.0,0.02075556]
[1673772805443,1.09811371,20628.0,20625.0,0.02075556]
[1673772805976,0.65477687,20627.0,20625.0,0.02075556]
[1673772808230,1.31512226,20627.0,20625.0,0.02075556]
[1673772808486,0.54740221,20626.0,20625.0,0.02075556]
[1673772809479,1.03222621,20626.0,20625.0,0.02075556]